bitfinex/quotes_BTCUSD_20230101
["timestamp","ask_amount","ask_price","bid_price","bid_amount"]
[1672542216239,0.133,16552.0,16551.0,1.76002801]
[1672542220006,0.13328676,16552.0,16551.0,1.76002801]
[1672542220248,0.133,16552.0,16551.0,1.76002801]
[1672542223503,0.133,16552.0,16551.0,2.06002801]
[1672542223751,0.133,16552.0,16551.0,1.76002801]
[1672542223988,0.13328676,16552.0,16551.0,1.76002801]
[1672542224737,0.133,16552.0,16551.0,1.76002801]
[1672542231545,0.133,16552.0,16551.0,1.06002801]
[1672542232541,0.133,16552.0,16551.0,1.76002801]
[1672542232799,0.133,16552.0,16551.0,2.06002801]
[1672542234043,0.133,16552.0,16551.0,1.76002801]
[1672542238765,0.133,16552.0,16551.0,1.75995054]
[1672542240014,0.133,16552.0,16551.0,2.05995054]
[1672542240264,0.133,16552.0,16551.0,2.67962154]
[1672542240515,0.133,16552.0,16551.0,2.37962154]
[1672542241036,0.133,16552.0,16551.0,2.05995054]
[1672542241517,0.133,16552.0,16551.0,1.75995054]
[1672542242021,0.133,16552.0,16551.0,2.05995054]
[1672542242825,0.133,16552.0,16551.0,1.75995054]
[1672542243335,0.133,16552.0,16551.0,2.05995054]
[1672542244092,0.133,16552.0,16551.0,2.67962154]
[1672542245075,0.133,16552.0,16551.0,2.37962154]
[1672542246421,0.133,16552.0,16551.0,2.67962154]
[1672542246670,0.133,16552.0,16551.0,2.37962154]
[1672542246922,0.13328676,16552.0,16551.0,2.37962154]
[1672542247168,0.133,16552.0,16551.0,2.37962154]
[1672542247425,0.133,16552.0,16551.0,1.75995054]
[1672542248921,0.133,16552.0,16551.0,2.05995054]
[1672542249178,0.133,16552.0,16551.0,2.67962154]
[1672542249447,0.133,16552.0,16551.0,2.37962154]
[1672542249716,0.13328676,16552.0,16551.0,2.37962154]
[1672542249964,0.133,16552.0,16551.0,2.37962154]
[1672542250463,0.133,16552.0,16551.0,1.75995054]
[1672542250707,0.133,16552.0,16551.0,2.05995054]
[1672542250953,0.133,16552.0,16551.0,2.67962154]
[1672542252451,0.133,16552.0,16551.0,2.37962154]
[1672542253434,0.133,16552.0,16551.0,1.67962154]
[1672542254672,0.133,16552.0,16551.0,2.67962154]
[1672542254914,0.133,16552.0,16551.0,2.37962154]
[1672542255163,0.133,16552.0,16551.0,2.67962154]
[1672542255662,0.74391001,16552.0,16551.0,2.67962154]
[1672542255922,0.74390402,16552.0,16551.0,2.38359134]
[1672542256181,0.67607106,16552.0,16551.0,2.14353132]
[1672542256440,0.67607106,16552.0,16551.0,2.73405031]
[1672542257925,0.35050574,16552.0,16551.0,2.43405031]
[1672542258175,0.74390402,16552.0,16551.0,2.43405031]
[1672542258413,0.74390402,16552.0,16551.0,1.81437931]
[1672542261674,0.74390402,16552.0,16551.0,1.81430731]
[1672542261919,0.74390402,16552.0,16551.0,2.11430731]
[1672542263896,0.74390402,16552.0,16551.0,2.73397831]
[1672542267460,0.74419078,16552.0,16551.0,0.72378832]
[1672542267708,1.11189457,16552.0,16551.0,0.72378832]
[1672542267959,0.50099055,16552.0,16551.0,0.72378832]
[1672542268212,0.50070379,16552.0,16551.0,0.72378832]
[1672542270055,1.11121673,16552.0,16551.0,0.72378832]
[1672542271551,1.11150349,16552.0,16551.0,0.72378832]
[1672542271799,0.50070379,16552.0,16551.0,0.72378832]
[1672542272816,0.133,16552.0,16551.0,0.72378832]
[1672542273097,0.74356758,16552.0,16551.0,1.34345932]
[1672542273615,0.74356758,16552.0,16551.0,0.72378832]
[1672542276786,0.74356758,16552.0,16551.0,0.52378832]
[1672542277535,0.74356758,16552.0,16551.0,1.14345932]
[1672542277788,0.74356758,16552.0,16551.0,1.84345932]
[1672542279563,0.74356758,16552.0,16551.0,2.37890338]
[1672542279808,0.74356758,16552.0,16551.0,2.67890338]
[1672542282337,0.74385434,16552.0,16551.0,2.37890338]
[1672542282585,0.74356758,16552.0,16551.0,2.37890338]
[1672542282835,0.74356758,16552.0,16551.0,2.67890338]
[1672542284353,0.74356758,16552.0,16551.0,2.67880459]
[1672542284601,0.74356758,16552.0,16551.0,2.37880459]
[1672542290711,0.133,16552.0,16551.0,2.37880459]
[1672542291454,0.74371221,16552.0,16551.0,2.37880459]
[1672542292699,0.74371221,16552.0,16551.0,1.67880459]
[1672542292977,0.74371221,16552.0,16551.0,1.75913359]
[1672542293715,0.74371221,16552.0,16551.0,2.37880459]
[1672542293959,0.74371221,16552.0,16551.0,2.67880459]
[1672542294221,0.74371221,16552.0,16551.0,2.37880459]
[1672542295719,0.74371221,16552.0,16551.0,2.67880459]
[1672542296357,0.133,16552.0,16551.0,2.67880459]
[1672542297073,0.133,16552.0,16551.0,2.37880459]
[1672542297349,0.133,16552.0,16551.0,2.67880459]
[1672542298098,0.3923099,16553.0,16551.0,2.67880459]
[1672542298352,0.3923099,16553.0,16552.0,0.619671]
[1672542298600,0.4008099,16553.0,16552.0,0.7]
[1672542298854,0.4008099,16553.0,16551.0,1.05913359]
[1672542299098,0.133,16552.0,16551.0,1.35913359]
[1672542299354,0.133,16552.0,16551.0,1.05913359]
[1672542299815,0.4008099,16553.0,16551.0,1.75913359]
[1672542300101,0.5348099,16553.0,16551.0,1.75913359]
[1672542300347,0.40109666,16553.0,16551.0,1.75913359]
[1672542300601,0.133,16552.0,16551.0,2.05913359]
[1672542300851,0.4008099,16553.0,16552.0,0.04285989]
[1672542301097,0.5348099,16553.0,16552.0,0.74285989]
[1672542301852,0.4008099,16553.0,16552.0,0.74285989]
[1672542302361,0.52993823,16553.0,16552.0,0.74285989]
[1672542302845,0.66393823,16553.0,16552.0,0.74285989]
[1672542304495,0.52993823,16553.0,16552.0,0.74285989]
[1672542304716,0.66393823,16553.0,16552.0,0.74285989]
[1672542305704,0.66422499,16553.0,16552.0,0.74285989]
[1672542305949,0.66393823,16553.0,16552.0,0.04285989]
[1672542306940,0.53509666,16553.0,16552.0,0.74285989]
[1672542307195,0.5348099,16553.0,16552.0,0.74285989]
[1672542307937,0.5348099,16553.0,16552.0,0.74274087]
[1672542312949,0.1425,16553.0,16552.0,0.74274087]
[1672542313225,0.1425,16553.0,16552.0,1.36241187]
[1672542316076,0.134,16553.0,16552.0,0.74274087]
[1672542318801,0.13428676,16553.0,16552.0,0.74274087]
[1672542319076,0.134,16553.0,16552.0,0.74274087]
[1672542319318,0.27356225,16553.0,16552.0,0.74274087]
[1672542320062,1.16432244,16553.0,16552.0,0.74274087]
[1672542320312,1.16403568,16553.0,16552.0,0.74274087]
[1672542320525,0.27356225,16553.0,16552.0,0.74274087]
[1672542320811,1.16403568,16553.0,16552.0,0.74274087]
[1672542321060,0.27384901,16553.0,16552.0,0.74274087]
[1672542321336,1.56426267,16553.0,16552.0,0.74274087]
[1672542321587,1.42470042,16553.0,16552.0,0.74274087]
[1672542322094,1.42498718,16553.0,16552.0,0.74274087]
[1672542322843,1.42470042,16553.0,16552.0,0.74274087]
[1672542323341,1.02447343,16553.0,16552.0,0.74274087]
[1672542323605,0.134,16553.0,16552.0,0.74274087]
[1672542324379,0.59145386,16553.0,16552.0,0.74274087]
[1672542324646,1.48192729,16553.0,16552.0,0.74274087]
[1672542325142,1.48164053,16553.0,16552.0,0.74274087]
[1672542326131,1.33934662,16553.0,16552.0,0.74274087]
[1672542326423,1.33963338,16553.0,16552.0,0.74274087]
[1672542326667,0.45765995,16553.0,16552.0,0.74274087]
[1672542327420,1.3478503,16553.0,16552.0,0.74274087]
[1672542327676,1.03297711,16553.0,16552.0,1.30171718]
[1672542327925,0.1425,16553.0,16552.0,1.30171718]
[1672542328175,0.134,16553.0,16552.0,1.30171718]
[1672542328651,0.134,16553.0,16552.0,1.92138818]
[1672542329399,0.1425,16553.0,16552.0,1.92138818]
[1672542331172,0.1425,16553.0,16552.0,1.30171718]
[1672542331419,0.1425,16553.0,16552.0,0.74267606]
[1672542331913,0.54549657,16553.0,16552.0,0.74267606]
[1672542333882,0.54578333,16553.0,16552.0,0.74267606]
[1672542334140,0.54549657,16553.0,16552.0,0.74267606]
[1672542336658,0.54578333,16553.0,16552.0,0.74267606]
[1672542337114,1.43597368,16553.0,16552.0,0.74267606]
[1672542337376,0.54549657,16553.0,16552.0,0.74267606]
[1672542338605,0.63972445,16553.0,16552.0,0.04267606]
[1672542339103,0.54549657,16553.0,16552.0,0.04267606]
[1672542339588,0.54549657,16553.0,16552.0,0.74267606]
[1672542344495,0.54578333,16553.0,16552.0,0.74267606]
[1672542344748,0.54549657,16553.0,16552.0,0.74267606]
[1672542345492,0.54549657,16553.0,16552.0,0.04267606]
[1672542346278,0.54578333,16553.0,16552.0,0.04267606]
[1672542346526,0.54549657,16553.0,16552.0,0.74267606]
[1672542347524,0.68909394,16553.0,16552.0,0.74267606]
[1672542348036,0.28609737,16553.0,16552.0,0.74267606]
[1672542348286,0.1425,16553.0,16552.0,0.74267606]
[1672542348515,0.1425,16553.0,16552.0,1.36637769]
[1672542348818,0.1425,16553.0,16552.0,1.66637769]
[1672542350082,0.1425,16553.0,16552.0,1.36637769]
[1672542350596,0.134,16553.0,16552.0,1.36637769]
[1672542355338,0.18664223,16553.0,16552.0,1.36637769]
[1672542355803,0.134,16553.0,16552.0,1.36630301]
[1672542356841,0.134,16553.0,16552.0,1.66630301]
[1672542357585,0.134,16553.0,16552.0,1.36630301]
[1672542357848,0.134,16553.0,16552.0,1.66630301]
[1672542358129,0.134,16553.0,16552.0,2.28597401]
[1672542359280,0.134,16553.0,16552.0,1.98597401]
[1672542359643,0.134,16553.0,16552.0,1.36630301]
[1672542360192,0.18241233,16553.0,16552.0,1.36630301]
[1672542360406,0.18269909,16553.0,16552.0,1.36630301]
[1672542360962,0.18241233,16553.0,16552.0,1.36630301]
[1672542361217,0.134,16553.0,16552.0,1.36630301]
[1672542361468,0.13428676,16553.0,16552.0,0.74260138]
[1672542361719,0.52707517,16553.0,16552.0,0.74260138]
[1672542373485,0.52736193,16553.0,16552.0,0.74260138]
[1672542373724,0.52707517,16553.0,16552.0,0.74260138]
[1672542374225,0.6688304,16553.0,16552.0,0.74260138]
[1672542375313,0.6688304,16553.0,16552.0,0.04260138]
[1672542375567,0.66911716,16553.0,16552.0,0.04260138]
[1672542375876,0.6688304,16553.0,16552.0,0.74260138]
[1672542376360,0.52707517,16553.0,16552.0,0.74252051]
[1672542380638,0.134,16553.0,16552.0,0.74252051]
[1672542380925,0.134,16553.0,16552.0,1.29732314]
[1672542381159,0.134,16553.0,16552.0,1.59732314]
[1672542381412,0.134,16553.0,16552.0,2.21699414]
[1672542382429,0.1474,16553.0,16552.0,2.21699414]
[1672542382673,0.134,16553.0,16552.0,2.21699414]
[1672542383950,0.134,16553.0,16552.0,1.91699414]
[1672542385239,0.134,16553.0,16552.0,2.21699414]
[1672542385515,0.134,16553.0,16552.0,1.91699414]
[1672542385769,0.134,16553.0,16552.0,2.21699414]
[1672542388396,0.134,16553.0,16552.0,1.91699414]
[1672542388647,0.134,16553.0,16552.0,1.29732314]
[1672542392498,0.134,16553.0,16552.0,0.59732314]
[1672542393488,0.134,16553.0,16552.0,1.29732314]
[1672542399167,0.134,16553.0,16552.0,1.29722684]
[1672542399412,0.134,16553.0,16552.0,0.59722684]
[1672542400381,0.134,16553.0,16552.0,1.29722684]
[1672542400629,0.74496271,16553.0,16552.0,1.29722684]
[1672542400871,0.74497379,16553.0,16552.0,1.29722684]
[1672542404344,0.74497379,16553.0,16552.0,1.91689784]
[1672542404599,0.74497379,16553.0,16552.0,2.21689784]
[1672542405088,0.74497379,16553.0,16552.0,1.91689784]
[1672542408241,0.134,16553.0,16552.0,1.91689784]
[1672542410097,0.134,16553.0,16552.0,1.29722684]
[1672542410846,0.134,16553.0,16552.0,1.59722684]
[1672542411119,0.134,16553.0,16552.0,1.91689784]
[1672542411361,0.134,16553.0,16552.0,2.21689784]
[1672542411614,0.134,16553.0,16552.0,1.91689784]
[1672542412886,0.134,16553.0,16552.0,2.21689784]
[1672542413137,0.134,16553.0,16552.0,1.91689784]
[1672542413646,0.134,16553.0,16552.0,1.29722684]
[1672542413900,0.134,16553.0,16552.0,1.91689784]
[1672542415456,0.134,16553.0,16552.0,1.29722684]
[1672542416232,0.134,16553.0,16552.0,1.91689784]
[1672542416989,0.13428676,16553.0,16552.0,1.91689784]
[1672542417245,0.134,16553.0,16552.0,1.29722684]
[1672542420976,0.134,16553.0,16552.0,1.29716579]
[1672542421472,0.13389244,16553.0,16552.0,1.29716579]
[1672542423093,0.13389244,16553.0,16552.0,0.59716579]
[1672542423834,0.13389244,16553.0,16552.0,1.29716579]
[1672542428665,0.13389244,16553.0,16552.0,1.59716579]
[1672542428910,0.13389244,16553.0,16552.0,2.21683679]
[1672542429172,0.13389244,16553.0,16552.0,1.91683679]
[1672542432925,0.13389244,16553.0,16552.0,1.29716579]
[1672542436182,0.13389244,16553.0,16552.0,0.59716579]
[1672542436679,0.13389244,16553.0,16552.0,1.21683679]
[1672542437143,0.13389244,16553.0,16552.0,1.91683679]
[1672542437402,0.13389244,16553.0,16552.0,2.21683679]
[1672542438646,0.74510843,16553.0,16552.0,2.21683679]
[1672542440652,0.74510843,16553.0,16552.0,1.29716579]
[1672542440904,0.13389244,16553.0,16552.0,1.29716579]
[1672542444405,0.13389244,16553.0,16552.0,1.29933009]
[1672542444685,0.74505185,16553.0,16552.0,1.29933009]
[1672542444930,0.13389244,16553.0,16552.0,1.29933009]
[1672542448969,0.13389244,16553.0,16552.0,0.59933009]
[1672542449740,0.74504307,16553.0,16552.0,1.59933009]
[1672542451548,0.74504307,16553.0,16552.0,1.29933009]
[1672542452039,0.74504307,16553.0,16552.0,1.27281783]
[1672542455290,0.74496271,16553.0,16552.0,1.27281783]
[1672542455768,0.74496271,16553.0,16552.0,0.57281783]
[1672542456771,0.74496271,16553.0,16552.0,1.27281783]
[1672542462793,0.74496271,16553.0,16552.0,0.57281783]
[1672542463633,0.13389244,16553.0,16552.0,0.57281783]
[1672542464118,0.13389244,16553.0,16552.0,1.27281783]
[1672542466575,0.74503085,16553.0,16552.0,1.57281783]
[1672542468554,0.74503085,16553.0,16552.0,1.27281783]
[1672542469290,0.74503085,16553.0,16552.0,1.27274852]
[1672542471032,0.74510146,16553.0,16552.0,1.27274852]
[1672542473735,0.74510146,16553.0,16552.0,0.57274852]
[1672542474472,0.74510146,16553.0,16552.0,1.27274852]
[1672542476770,0.74510146,16553.0,16552.0,1.57274852]
[1672542477538,0.74510146,16553.0,16552.0,1.27274852]
[1672542477813,0.74510146,16553.0,16552.0,1.57274852]
[1672542478327,0.74510146,16553.0,16552.0,2.19241952]
[1672542480411,0.74510146,16553.0,16552.0,1.89241952]
[1672542480897,0.74510146,16553.0,16552.0,1.27052181]
[1672542481713,0.13389244,16553.0,16552.0,1.27052181]
[1672542488710,0.13389244,16553.0,16552.0,1.27062784]
[1672542491226,0.13389244,16553.0,16552.0,1.27055159]
[1672542496178,0.13389244,16553.0,16552.0,0.57055159]
[1672542497224,0.13389244,16553.0,16552.0,1.27055159]
[1672542501447,0.13381853,16553.0,16552.0,1.27055159]
[1672542501946,0.13381853,16553.0,16552.0,1.26555159]
[1672542510452,0.13381853,16553.0,16552.0,0.56555159]
[1672542511596,0.13381853,16553.0,16552.0,1.26555159]
[1672542517513,0.13381853,16553.0,16552.0,0.01589452]
[1672542517757,0.13381853,16553.0,16552.0,0.71589452]
[1672542520348,0.13381853,16553.0,16552.0,1.25835209]
[1672542523712,0.13381853,16553.0,16552.0,0.55835209]
[1672542524203,0.13381853,16553.0,16552.0,0.5582407]
[1672542524745,0.13381853,16553.0,16552.0,1.2582407]
[1672542530302,0.13381853,16553.0,16552.0,1.8779117]
[1672542530853,0.13381853,16553.0,16552.0,1.2582407]
[1672542531105,0.13381853,16553.0,16552.0,1.8779117]
[1672542532131,0.13381853,16553.0,16552.0,1.2582407]
[1672542532348,0.13381853,16553.0,16552.0,1.8779117]
[1672542532646,0.13381853,16553.0,16552.0,1.2582407]
[1672542532904,0.13381853,16553.0,16552.0,1.8779117]
[1672542535908,0.13381853,16553.0,16552.0,1.2582407]
[1672542536150,0.13381853,16553.0,16552.0,1.8779117]
[1672542537640,0.13381853,16553.0,16552.0,1.2582407]
[1672542539123,0.13381853,16553.0,16552.0,0.5582407]
[1672542540103,0.13381853,16553.0,16552.0,1.2582407]
[1672542542355,0.13370996,16553.0,16552.0,1.2582407]
[1672542549908,0.13370996,16553.0,16552.0,0.5582407]
[1672542550905,0.13370996,16553.0,16552.0,1.2582407]
[1672542553447,0.13370996,16553.0,16552.0,0.71578313]
[1672542560114,0.13370996,16553.0,16552.0,0.01578313]
[1672542561084,0.13370996,16553.0,16552.0,0.71578313]
[1672542561829,0.13370996,16553.0,16552.0,0.7157733]
[1672542566183,0.13370996,16553.0,16552.0,0.71568716]
[1672542567235,0.13370996,16553.0,16552.0,0.01568716]
[1672542568218,0.13370996,16553.0,16552.0,0.71568716]
[1672542574155,0.13370996,16553.0,16552.0,0.01568716]
[1672542575155,0.13370996,16553.0,16552.0,0.71568716]
[1672542581092,0.13370996,16553.0,16552.0,0.01568716]
[1672542582818,0.13370996,16553.0,16552.0,0.71568716]
[1672542588107,0.13370996,16553.0,16552.0,0.71562061]
[1672542588856,0.13370996,16553.0,16552.0,0.01562061]
[1672542589102,0.13370996,16553.0,16552.0,0.71562061]
[1672542595152,0.13370996,16553.0,16552.0,0.01562061]
[1672542596134,0.13370996,16553.0,16552.0,0.71562061]
[1672542600159,0.13370996,16553.0,16552.0,0.7000962]
[1672542600409,0.13370996,16553.0,16552.0,0.7]
[1672542601427,0.13399672,16553.0,16552.0,0.7]
[1672542601690,0.13370996,16553.0,16552.0,0.7]
[1672542602200,0.13370996,16553.0,16551.0,0.99187747]
[1672542602447,0.13370996,16553.0,16552.0,0.00010554]
[1672542603222,0.32003888,16554.0,16552.0,0.70010554]
[1672542603539,1.33156759,16554.0,16552.0,0.70010554]
[1672542603721,1.33185435,16554.0,16552.0,0.7]
[1672542603980,0.3210577,16553.0,16552.0,0.7]
[1672542605257,0.4550577,16553.0,16552.0,0.70202496]
[1672542605503,0.4550577,16553.0,16552.0,0.7]
[1672542606517,0.4550577,16553.0,16552.0,0.70202496]
[1672542606764,0.4550577,16553.0,16552.0,0.7]
[1672542607763,0.4550577,16553.0,16552.0,0.70202496]
[1672542608517,0.4550577,16553.0,16552.0,0.69992508]
[1672542608771,0.4550577,16553.0,16552.0,0.70195004]
[1672542609032,0.4550577,16553.0,16552.0,0.69992508]
[1672542611075,0.58989794,16553.0,16552.0,0.69992508]
[1672542611325,1.34582157,16553.0,16552.0,0.69992508]
[1672542611581,0.45534446,16553.0,16552.0,0.69992508]
[1672542612062,0.4550577,16553.0,16552.0,0.69992508]
[1672542612312,0.4550577,16553.0,16552.0,0.00010124]
[1672542612800,0.4550577,16553.0,16551.0,0.92656505]
[1672542613334,0.4550577,16553.0,16552.0,0.70010124]
[1672542613838,0.3210577,16553.0,16552.0,0.70010124]
[1672542614585,0.3210577,16553.0,16552.0,0.7]
[1672542614820,0.4550577,16553.0,16552.0,0.70202474]
[1672542615068,0.4550577,16553.0,16552.0,0.7]
[1672542615601,0.45534446,16553.0,16552.0,0.7]
[1672542616346,0.58992662,16553.0,16552.0,0.7]
[1672542617082,0.58963986,16553.0,16552.0,0.7]
[1672542618089,0.4550577,16553.0,16552.0,0.7]
[1672542620063,0.45534446,16553.0,16552.0,0.7]
[1672542620318,0.4550577,16553.0,16552.0,0.7]
[1672542620560,0.4550577,16553.0,16552.0,0.70019741]
[1672542620803,0.4550577,16553.0,16552.0,0.7]
[1672542621811,0.4550577,16553.0,16552.0,0.70019741]
[1672542622326,0.4550577,16553.0,16552.0,0.7]
[1672542622826,0.58961118,16553.0,16552.0,0.70193337]
[1672542623570,0.58961118,16553.0,16552.0,0.00193337]
[1672542623819,0.58961118,16553.0,16551.0,1.42656505]
[1672542624073,0.4550577,16553.0,16552.0,0.00193337]
[1672542624325,0.45534446,16553.0,16552.0,0.7]
[1672542624569,0.3210577,16553.0,16552.0,0.7]
[1672542625583,0.4550577,16553.0,16552.0,0.7]
[1672542625837,0.3210577,16553.0,16552.0,0.7]
[1672542626089,0.4550577,16553.0,16552.0,0.7]
[1672542626844,0.45534446,16553.0,16552.0,0.7]
[1672542627100,0.58992662,16553.0,16552.0,0.7]
[1672542627613,0.58963986,16553.0,16552.0,0.70009665]
[1672542627854,0.58992662,16553.0,16552.0,0.7]
[1672542628102,0.58963986,16553.0,16552.0,0.7]
[1672542628875,0.58963986,16553.0,16552.0,0.70009665]
[1672542629123,0.58963986,16553.0,16552.0,0.7]
[1672542629124,0.58992662,16553.0,16552.0,0.7]
[1672542629376,0.58963986,16553.0,16552.0,0.7]
[1672542630108,0.58992662,16553.0,16552.0,0.7]
[1672542630354,0.58992662,16553.0,16551.0,1.12656505]
[1672542630590,0.45534446,16553.0,16551.0,1.12656505]
[1672542630841,0.45534446,16553.0,16551.0,1.12851249]
[1672542631570,0.4550577,16553.0,16552.0,0.7]
[1672542632046,1.18944288,16554.0,16552.0,0.7]
[1672542632306,0.134,16553.0,16552.0,0.7]
[1672542632595,1.30838717,16554.0,16552.0,0.7]
[1672542632838,0.134,16553.0,16552.0,0.7]
[1672542633086,0.14614162,16553.0,16552.0,0.7]
[1672542633575,0.01214162,16553.0,16552.0,0.7]
[1672542634338,0.1441945,16553.0,16552.0,0.7]
[1672542635139,0.2781945,16553.0,16552.0,0.7]
[1672542637568,0.2781945,16553.0,16551.0,1.12851249]
[1672542637820,0.14614162,16553.0,16551.0,1.42851249]
[1672542638547,0.01214162,16553.0,16552.0,0.7]
[1672542638799,0.14614162,16553.0,16552.0,0.7]
[1672542639050,0.46287135,16553.0,16552.0,0.7]
[1672542639545,0.32887135,16553.0,16552.0,0.7]
[1672542639806,0.5848062,16553.0,16552.0,0.7]
[1672542641832,0.46287135,16553.0,16552.0,0.7]
[1672542642079,0.46315811,16553.0,16552.0,0.7]
[1672542642325,0.46287135,16553.0,16552.0,0.7]
[1672542642568,0.14614162,16553.0,16552.0,0.7]
[1672542644524,0.14642838,16553.0,16551.0,1.12851249]
[1672542644766,0.14614162,16553.0,16551.0,1.12851249]
[1672542645013,0.14614162,16553.0,16551.0,1.42851249]
[1672542645494,0.01214162,16553.0,16552.0,0.7]
[1672542645744,0.14614162,16553.0,16552.0,0.7]
[1672542647291,0.01214162,16553.0,16552.0,0.7]
[1672542647575,0.14614162,16553.0,16552.0,0.7]
[1672542648333,0.27912987,16553.0,16552.0,0.7]
[1672542650275,0.14614162,16553.0,16552.0,1.93142151]
[1672542651024,0.14614162,16553.0,16552.0,1.31165192]
[1672542655499,0.14602547,16553.0,16552.0,1.31165192]
[1672542659514,0.14602547,16553.0,16552.0,1.61165192]
[1672542660237,0.14602547,16553.0,16552.0,1.31165192]
[1672542666044,0.14602547,16553.0,16552.0,0.61175051]
[1672542666990,0.14602547,16553.0,16552.0,1.31175051]
[1672542671090,0.75699286,16553.0,16552.0,1.31175051]
[1672542671813,0.14602547,16553.0,16552.0,1.31175051]
[1672542674777,0.14602547,16553.0,16552.0,0.7]
[1672542675025,0.52677049,16553.0,16552.0,0.7]
[1672542676289,0.52705725,16553.0,16552.0,0.7]
[1672542676534,0.52677049,16553.0,16552.0,0.7]
[1672542677914,0.52705725,16553.0,16552.0,0.7]
[1672542678153,0.52677049,16553.0,16552.0,0.7]
[1672542678643,0.66849525,16553.0,16552.0,0.7]
[1672542678906,0.52677049,16553.0,16552.0,0.69993835]
[1672542682125,0.52677049,16553.0,16551.0,1.11620549]
[1672542683163,0.52677049,16553.0,16552.0,0.7]
[1672542683411,0.39277049,16553.0,16552.0,0.7]
[1672542683659,0.52677049,16553.0,16552.0,0.7]
[1672542684167,0.66849525,16553.0,16552.0,0.7]
[1672542685154,0.53449525,16553.0,16552.0,0.7]
[1672542685403,0.66849525,16553.0,16552.0,0.7]
[1672542686376,0.52677049,16553.0,16552.0,0.7]
[1672542687159,0.51474502,16553.0,16552.0,0.7]
[1672542687568,0.51503178,16553.0,16552.0,0.7]
[1672542688077,0.134,16553.0,16552.0,0.7]
[1672542689081,0.134,16553.0,16551.0,1.11620549]
[1672542689351,0.134,16553.0,16551.0,1.41620549]
[1672542690010,0.29140311,16554.0,16551.0,1.41620549]
[1672542690357,1.18188022,16554.0,16551.0,1.41620549]
[1672542690619,1.30006824,16554.0,16551.0,1.41620549]
[1672542690824,1.30006824,16554.0,16552.0,0.7]
[1672542691060,0.00028676,16553.0,16552.0,0.7]
[1672542691270,0.134,16553.0,16552.0,0.7]
[1672542691465,1.30006824,16554.0,16552.0,0.7]
[1672542691640,0.13000682,16553.0,16552.0,0.7]
[1672542691871,1.31688022,16554.0,16552.0,0.7]
[1672542692064,1.31674694,16554.0,16552.0,0.7]
[1672542692270,0.134,16553.0,16552.0,1.19571971]
[1672542695859,0.134,16553.0,16552.0,1.19757911]
[1672542696473,0.13428676,16553.0,16552.0,1.19571971]
[1672542696709,0.134,16553.0,16552.0,0.49757911]
[1672542696973,0.134,16553.0,16552.0,1.19571971]
[1672542697704,0.13428676,16553.0,16552.0,1.19571971]
[1672542697961,0.134,16553.0,16552.0,1.19571971]
[1672542699445,0.134,16553.0,16552.0,1.19757911]
[1672542699959,0.134,16553.0,16552.0,1.19571971]
[1672542700559,0.134,16553.0,16552.0,1.19757911]
[1672542701583,0.13428676,16553.0,16552.0,0.7]
[1672542702312,0.134,16553.0,16552.0,0.7]
[1672542702853,0.13428676,16553.0,16552.0,0.7]
[1672542703115,0.52690714,16553.0,16552.0,0.7]
[1672542703600,0.52690714,16553.0,16552.0,0.70009296]
[1672542703841,0.52690714,16553.0,16552.0,0.7]
[1672542704100,0.5271939,16553.0,16552.0,0.7]
[1672542704348,0.52690714,16553.0,16552.0,0.7]
[1672542705163,1.57290944,16553.0,16552.0,0.7]
[1672542705419,1.58140944,16553.0,16552.0,0.7]
[1672542706205,0.69093233,16553.0,16552.0,0.7]
[1672542706469,0.5356939,16553.0,16552.0,0.7]
[1672542706726,0.53540714,16553.0,16552.0,0.7]
[1672542707012,0.5356939,16553.0,16552.0,0.7]
[1672542707263,1.42588425,16553.0,16552.0,0.7]
[1672542707763,1.42617101,16553.0,16552.0,0.7]
[1672542708019,0.53540714,16553.0,16552.0,0.7]
[1672542709090,1.42588425,16553.0,16552.0,0.7]
[1672542709327,0.53540714,16553.0,16552.0,0.7]
[1672542711571,0.1425,16553.0,16552.0,0.7]
[1672542712059,0.1425,16553.0,16551.0,1.12885411]
[1672542712307,0.14278676,16553.0,16551.0,1.1287795]
[1672542712560,0.1425,16553.0,16551.0,1.1287795]
[1672542713024,1.03297711,16553.0,16552.0,0.7]
[1672542713290,1.04707221,16553.0,16552.0,0.7]
[1672542713541,1.18107221,16553.0,16552.0,0.7]
[1672542713797,0.1565951,16553.0,16552.0,0.7]
[1672542714046,0.2905951,16553.0,16552.0,0.7]
[1672542714530,0.1425,16553.0,16552.0,0.7]
[1672542715275,1.03297711,16553.0,16552.0,0.7]
[1672542715528,0.1425,16553.0,16552.0,0.7]
[1672542716288,0.14278676,16553.0,16552.0,0.7]
[1672542716526,0.1425,16553.0,16552.0,0.7]
[1672542716786,0.2770951,16553.0,16552.0,0.70017686]
[1672542717511,0.2770951,16553.0,16552.0,0.7]
[1672542719128,0.2770951,16553.0,16552.0,0.70017686]
[1672542721930,0.27738186,16553.0,16552.0,0.7]
[1672542722188,0.2770951,16553.0,16552.0,0.7]
[1672542724369,0.2770951,16553.0,16552.0,0.70017686]
[1672542724614,0.2770951,16553.0,16552.0,0.7]
[1672542731376,0.1425,16553.0,16552.0,0.7]
[1672542732153,0.1425,16553.0,16552.0,0.70017686]
[1672542732672,0.1425,16553.0,16552.0,0.00017686]
[1672542733489,0.1425,16553.0,16552.0,0.70017686]
[1672542736814,0.1425,16553.0,16552.0,0.7]
[1672542737050,0.2770951,16553.0,16552.0,0.69989451]
[1672542737769,0.1425,16553.0,16552.0,0.69989451]
[1672542739514,0.1425,16553.0,16551.0,1.1287795]
[1672542739769,0.1425,16553.0,16551.0,1.4287795]
[1672542740486,0.1425,16553.0,16552.0,0.70017686]
[1672542740759,0.1425,16553.0,16552.0,0.7]
[1672542741006,0.0085,16553.0,16552.0,0.7]
[1672542741774,0.1425,16553.0,16552.0,0.7]
[1672542742033,0.2770951,16553.0,16552.0,0.7]
[1672542742767,0.2770951,16553.0,16552.0,0.70017686]
[1672542748649,0.2770951,16553.0,16552.0,0.7]
[1672542749175,0.1425,16553.0,16552.0,0.6678]
[1672542750827,0.1425,16553.0,16551.0,1.1287795]
[1672542751046,0.1425,16553.0,16551.0,1.4287795]
[1672542751780,0.1425,16553.0,16552.0,0.7]
[1672542752070,0.0085,16553.0,16552.0,0.7]
[1672542752310,0.1425,16553.0,16552.0,0.7]
[1672542752555,0.1425,16553.0,16552.0,0.70017686]